[Event "4NCL Div 1 2024-25"]
[Site "England"]
[Date "2025.01.25"]
[Round "3.7"]
[White "Shafi, Declan"]
[Black "Haydon, David L"]
[Result "1/2-1/2"]
[Annotator "TA"]
[ECO "B01"]
[WhiteElo "2181"]
[BlackElo "2294"]
[PlyCount "118"]
[EventDate "2024.11.23"]
[EventType "team-tourn"]
[EventCountry "ENG"]
[SourceTitle "playchess.com"]
[Source "ChessBase"]
[SourceQuality "1"]
[TimeControl "40/6000+30:3000+30"]

{[%evp 9,118,35,61,61,44,47,53,52,46,58,66,48,61,55,69,64,68,61,62,53,62,60,62,41,57,25,125,118,133,118,258,125,142,113,263,244,195,40,96,94,96,78,168,83,104,118,95,101,108,114,117,104,99,25,99,95,131,127,172,125,116,110,115,80,79,42,41,20,23,0,0,0,0,0,0,0,0,0,0,0,0,0,0,0,0,0,0,0,0,0,0,0,0,0,0,0,0,0,0,0,0,0,0,0,0,0,0,0,0,0,0]} 1. e4 {[%emt 0:10:03]} d5 {[%emt 0:14:20]} 2. exd5 {[%emt 0:00:06]} Qxd5 {[%emt 0:00:07]} 3. Nc3 {[%emt 0:00:04]} Qd6 {[%emt 0:00:43]} 4. d4 {[%emt 0:02:24]} Nf6 {[%emt 0:00:52]} 5. Bc4 {[%emt 0:07:15]} c6 {[%emt 0:03:10]} 6. Nge2 {[%emt 0:03:55] B01: Scandinavian Defence.} e6 {[%emt 0:05:55]} 7. O-O {[%emt 0:02:46]} Be7 {[%emt 0:05:25]} 8. Ng3 {[%emt 0:07:08] White is slightly better.} O-O $146 {[%emt 0:02:05]} (8... Nbd7 9. Nce4 Qc7 10. c3 Nb6 11. Nxf6+ gxf6 12. Be2 Bd7 13. Bh5 O-O-O 14. Bh6 Be8 {1-0 Bolacky,J (2257)-Nedela,V (2374) CZE-chT1 East 0506 2005 (4.2)}) 9. Nce4 {[%emt 0:03:55]} Qd8 {[%emt 0:10:42]} 10. Nxf6+ {[%emt 0:01:39]} Bxf6 {[%emt 0:01:06]} 11. c3 {[%emt 0:00:06]} Nd7 {[%emt 0:02:26]} 12. Nh5 {[%emt 0:03:27]} e5 {[%emt 0:08:20]} 13. Nxf6+ {[%emt 0:02:59]} Qxf6 {[%emt 0:03:24]} 14. Be3 $1 {[%emt 0:01:10]} Nb6 {[%emt 0:03:59]} 15. dxe5 {[%emt 0:01:54]} Qxe5 {[%emt 0:00:12]} 16. Bd4 {[%emt 0:01:03]} Qg5 {[%emt 0:00:22]} 17. f4 {[%emt 0:03:18]} Qa5 {[%emt 0:13:57] Black is weak on the dark squares} (17... Qg6 $11 18. Bb3 Bf5) 18. b4 {[%emt 0:07:03]} Qf5 {[%emt 0:03:46]} 19. Bd3 {[%emt 0:01:08]} Qd5 {[%emt 0:05:39] [#]} (19... Qg4 $16) 20. f5 {[%emt 0:06:31]} (20. Re1 $1 $18 {[%cal Re1e5] and the rest is easy.}) 20... f6 $16 {[%emt 0:05:50]} 21. Rf4 {[%emt 0:08:43]} Nc4 {[%emt 0:05:24]} (21... Kh8 $16 22. a4 Re8) 22. Qe2 {[%emt 0:08:57]} Ne5 {[%emt 0:00:41]} 23. c4 $2 {[%emt 0:06:15]} (23. Bc2 $18 Kh8 24. Rh4) 23... Qd6 {[%emt 0:00:18]} ({Black should play} 23... Nxd3 $1 $14 24. cxd5 (24. Qxd3 Qd6 $11) 24... Nxf4) 24. c5 {[%emt 0:01:53]} Qc7 {[%emt 0:00:32] aiming for ...Nxd3.} 25. Bc2 {[%emt 0:00:55] A strong pair of Bishops.} (25. Bxe5 {simplifies} Qxe5 26. Qxe5 fxe5 27. Rf3) 25... a5 {[%emt 0:13:45]} (25... Ng6 $16 {is a better defense.} 26. Rf3 Ne7) 26. a4 {[%emt 0:03:03]} (26. Rh4 $18 {and White stays clearly on top. Strongly threatening Bb3+.} h6 27. bxa5) 26... axb4 {[%emt 0:00:00][%cal Oe5d3]} 27. Bb3+ {[%emt 0:01:00]} Kh8 {[%emt 0:00:00][%cal Oe5g6] [#]} 28. Raf1 $1 {[%emt 0:01:19]} Bd7 {[%emt 0:00:00]} 29. Rh4 {[%emt 0:04:38][%cal Oh4h7] Intending Rxh7+! and mate.} Be8 {[%emt 0:00:00]} 30. Bxe5 {[%emt 0:00:30]} fxe5 {[%emt 0:00:00]} 31. Rxb4 {[%emt 0:00:17] White is much more active.} (31. Qe3 $16 Rf6 32. g4 (32. Rxb4 Bf7 $16)) 31... Ra5 {[%emt 0:00:00]} (31... Bf7 $11 {keeps the balance.}) 32. Qe3 {[%emt 0:02:18]} Qe7 {[%emt 0:00:00][%cal Oe8f7] Prevents Rh4.} 33. Be6 {[%emt 0:02:00]} e4 {[%emt 0:00:00]} 34. Rfb1 {[%emt 0:00:57]} (34. Qxe4 $6 Qxc5+ 35. Qd4 Qxd4+ 36. Rxd4 Ra8 $14) ({Better is} 34. Rc1 $18) 34... Qxc5 {[%emt 0:00:14]} 35. Qxc5 {[%emt 0:00:20]} ({Reject} 35. Rxe4 $6 Qxe3+ 36. Rxe3 b5 $14) 35... Rxc5 {[%emt 0:00:01]} 36. Rxe4 {[%emt 0:01:00]} (36. Rxb7 {looks sharper.} e3 37. Re1 Re5 38. g4) 36... g6 {[%emt 0:00:31]} 37. g4 {[%emt 0:01:43]} gxf5 {[%emt 0:01:13]} 38. gxf5 {[%emt 0:01:05]} Bf7 {[%emt 0:00:01]} 39. Rbe1 {[%emt 0:02:56]} Kg7 {[%emt 0:02:12] The position is equal.} 40. Rb4 {[%emt 0:01:20]} Rb8 {[%emt 0:00:04]} 41. Rd1 {[%emt 0:23:17]} Bxe6 {[%emt 0:23:56]} 42. fxe6 $11 {[%emt 0:00:05][%mdl 4096] Endgame KRR-KRR} Kf6 {[%emt 0:00:38]} 43. Rd7 {[%emt 0:03:37]} Rf5 {[%emt 0:11:09] ( -> ...Rg8+)} (43... Kxe6 44. Rxh7 b5 45. axb5) 44. h3 {[%emt 0:07:01]} Rg8+ {[%emt 0:01:38]} 45. Kh2 {[%emt 0:00:13]} Rf2+ {[%emt 0:01:36]} 46. Kh1 {[%emt 0:00:05]} Rfg2 {[%emt 0:00:24]} 47. Rb1 {[%emt 0:03:05] Repels Rg1+} R2g7 {[%emt 0:02:21]} 48. Rdxb7 {[%emt 0:03:37]} Rxb7 {[%emt 0:01:17]} 49. Rxb7 {[%emt 0:00:04]} Kxe6 {[%emt 0:00:04] KR-KR} 50. a5 {[%emt 0:00:16][%cal Ba4a5,Ba5a6,Ba6a7][%mdl 32]} h5 {[%emt 0:08:18]} 51. a6 {[%emt 0:00:41]} Rg3 {[%emt 0:00:03]} 52. Kh2 {[%emt 0:02:12]} Ra3 {[%emt 0:00:40]} 53. a7 {[%emt 0:01:23]} c5 {[%emt 0:00:16]} 54. Kg2 {[%emt 0:00:17]} Kd5 {[%emt 0:00:25]} 55. Kf2 {[%emt 0:00:43]} Kc6 {[%emt 0:00:37]} 56. Rh7 {[%emt 0:00:13]} Kb6 {[%emt 0:00:08]} 57. Ke2 {[%emt 0:00:16]} Rxa7 {[%emt 0:00:05]} 58. Rxh5 {[%emt 0:00:09]} Rd7 {[%emt 0:00:13]} 59. Re5 {[%emt 0:00:57]} c4 {[%emt 0:00:28] Black escapes into a draw.   Weighted Error Value: White=0.17 (very precise) /Black=0.17 (very precise)   Mistake:       	White=5     	Black=6      Inaccurate:     	White=3     	Black=2      OK:         	White=16    	Black=20     Best:        	White=3     	Black=6      Strong:       	White=2     	---} 1/2-1/2

[Event "4NCL Div 1 2024-25"]
[Site "England"]
[Date "2025.01.25"]
[Round "3.9"]
[White "Gormally, Daniel W"]
[Black "Lupulescu, Constantin"]
[Result "0-1"]
[Annotator "TA"]
[ECO "D52"]
[WhiteElo "2424"]
[BlackElo "2597"]
[PlyCount "54"]
[EventDate "2024.11.23"]
[EventType "team-tourn"]
[EventCountry "ENG"]
[SourceTitle "playchess.com"]
[Source "ChessBase"]
[SourceQuality "1"]
[TimeControl "40/6000+30:3000+30"]

{[%evp 21,54,27,30,25,33,0,24,2,14,1,4,-31,0,-15,-14,-4,12,0,0,0,0,0,9,-43,-50,-260,-231,-436,-439,-443,-442,-437,-425,-737,-675]} 1. d4 {[%emt 1:37:48]} Nf6 {[%emt 0:11:22]} 2. Nf3 {[%emt 0:00:09]} d5 {[%emt 0:00:15]} 3. c4 {[%emt 0:00:10]} e6 {[%emt 0:00:06]} 4. Nc3 {[%emt 0:00:04]} Nbd7 {[%emt 0:00:17]} 5. Bg5 {[%emt 0:00:46]} c6 {[%emt 0:00:12]} 6. e3 {[%emt 0:00:34]} Qa5 {[%emt 0:00:22]} 7. cxd5 {[%emt 0:00:22]} Nxd5 {[%emt 0:00:20]} 8. Qd2 {[%emt 0:00:20]} Bb4 {[%emt 0:06:28]} 9. Rc1 {[%emt 0:00:05]} e5 {[%emt 0:00:20]} 10. Bd3 {[%emt 0:00:47]} h6 $5 {[%emt 0:01:19][%mdl 4] Leaves trodden paths.} 11. Bh4 {[%emt 0:00:07]} O-O {[%emt 0:00:19]} 12. O-O {[%emt 0:00:12] D52: Queen's Gambit Declined: Cambridge Springs Variation.} Re8 {[%emt 0:00:11][%cal Oe5e4] White must now prevent ...e4!.} 13. e4 {[%emt 0:02:21]} Nf4 {[%emt 0:02:33]} 14. Bc4 {[%emt 0:01:32][%cal Oc4f7] White has an edge.} Ng6 {[%emt 0:14:52] A sharp opening} 15. Bg3 $146 {[%emt 0:00:08]} (15. a3 Bxc3 16. Qxc3 Qxc3 17. bxc3 Nb6 18. Bd3 Nf4 19. Bb1 Ne2+ 20. Kh1 Nxc1 21. Rxc1 Nc4 22. a4 Bg4 23. Nxe5 Nxe5 24. dxe5 Rxe5 25. f3 Be6 26. Be7 Bb3 {0-1 Alperin,M (1338)-Boettcher,F (2128) LSS CP-2006-P-00084}) 15... exd4 {[%emt 0:01:29]} 16. Qxd4 {[%emt 0:00:23]} Nb6 {[%emt 0:05:02]} (16... Nf6 {simplifies} 17. e5 Nh5 18. a3 Bxc3 19. Rxc3 Be6) 17. Bb3 {[%emt 0:01:10]} Bg4 {[%emt 0:02:13]} 18. Rfd1 {[%emt 0:00:35]} Re7 {[%emt 0:11:17]} 19. h3 {[%emt 0:01:17]} Bxf3 {[%emt 0:11:04]} 20. gxf3 {[%emt 0:00:05]} Rd7 {[%emt 0:00:24]} 21. Qe3 {[%emt 0:00:39]} Qh5 {[%emt 0:00:43]} 22. Rxd7 {[%emt 0:01:20]} (22. e5 $11) 22... Nxd7 $15 {[%emt 0:00:14][%cal Bb6d7,Bd7e5,Be5d3][%mdl 32]} 23. Qd4 {[%emt 0:00:05] White does not recover from this.} (23. Kh2 $15) 23... Qxh3 {[%emt 0:15:19]} 24. Qxb4 $2 {[%emt 0:00:05]} (24. Bxf7+ {is the only way for White.} Kxf7 25. Qxb4) 24... Nde5 $19 {[%emt 0:00:56][%cal Re5f3] Black is clearly winning.} 25. Bd1 {[%emt 0:00:04][%cal Ob4d4] [#] Qd4! is the strong threat.} (25. Qxb7 $2 Nxf3#) 25... Nd3 $1 {[%emt 0:05:34][%csl LRb4,LRc1] ( -> ...Ne1) Excellent horsemanship.} 26. Qc4 {[%emt 0:00:05] [#]} (26. Qxb7 Ne1) 26... Rd8 {[%emt 0:00:45]} ({Not} 26... Nxc1 27. Nb1 $19) 27. Bb3 {[%emt 0:00:32]} (27. Nd5 $142 Nxc1 (27... cxd5 $2 {too greedy.} 28. Qxd3 h5 29. exd5 $18) 28. Qxc1 cxd5 29. Bb3) 27... Nge5 {[%emt 0:01:59] Weighted Error Value: White=0.63/Black=0.08 (flawless)   Loses game:     	White=1     	---        Mistake:       	White=3     	---        Inaccurate:     	White=2     	Black=1      OK:         	White=4     	Black=7      Best:        	White=1     	Black=2      Strong:       	---       	Black=1} 0-1

[Event "4NCL Div 1 2024-25"]
[Site "England"]
[Date "2025.01.25"]
[Round "3.10"]
[White "Parligras, Mircea-Emilian"]
[Black "Bates, Richard A"]
[Result "1-0"]
[Annotator "TA"]
[ECO "E90"]
[WhiteElo "2528"]
[BlackElo "2315"]
[PlyCount "57"]
[EventDate "2024.11.23"]
[EventType "team-tourn"]
[EventCountry "ENG"]
[SourceTitle "playchess.com"]
[Source "ChessBase"]
[SourceQuality "1"]
[TimeControl "40/6000+30:3000+30"]

{[%evp 13,57,23,74,53,86,89,102,92,106,75,107,102,116,72,69,67,116,117,236,232,252,247,247,241,307,288,362,345,348,310,479,483,487,487,482,488,483,462,1149,1134,1084,1037,1570,1574,1604,1600]} 1. d4 {[%emt 0:10:05]} Nf6 {[%emt 0:10:21]} 2. c4 {[%emt 0:00:11]} g6 {[%emt 0:00:39]} 3. Nc3 {[%emt 0:00:13]} Bg7 {[%emt 0:00:07]} 4. e4 {[%emt 0:00:08]} d6 {[%emt 0:00:05]} 5. h3 {[%emt 0:00:11]} O-O {[%emt 0:00:47]} 6. Be3 {[%emt 0:00:07]} c5 {[%emt 0:03:05]} 7. Nf3 {[%emt 0:00:40]} Nbd7 {[%emt 0:05:01]} (7... cxd4 $11 {keeps the balance.} 8. Nxd4 a6) 8. d5 $16 {[%emt 0:10:49] E90: King's Indian: Classical: Early deviations and 6 h3.} b5 {[%emt 0:11:04] is now more promising than 8...a6.} 9. cxb5 {[%emt 0:00:35] White is more active.} (9. Nxb5 Nxe4 10. Bd3 a6 $17) 9... a6 {[%emt 0:00:07]} 10. a4 {[%emt 0:02:07] White is better.} Qa5 {[%emt 0:04:12]} 11. Nd2 {[%emt 0:04:27][%cal Bf3d2,Bd2c4,Bc4a5,Ba5c6][%mdl 32]} axb5 {[%emt 0:00:39]} 12. Bxb5 {[%emt 0:00:28]} Ba6 {[%emt 0:00:20]} 13. Ra3 {[%emt 0:08:52]} Bxb5 {[%emt 0:15:44]} 14. axb5 {[%emt 0:00:10][%csl Ob5] White has a strong passed pawn} Qb6 $146 {[%emt 0:02:24] Black is on the road to losing.} (14... Qc7 $14 {is more appropriate.}) (14... Qc7 15. Qb3 Nb6 16. O-O Nfd7 17. Rfa1 Rab8 18. Nc4 Nxc4 19. Qxc4 Rb7 20. Ra8 Rfb8 {1-0 Hoi,C (2380)-Larsen,S Time Manager Cup 1985 (6)}) 15. Nc4 {[%emt 0:10:56]} Qb7 {[%emt 0:05:18] [#]} (15... Qc7 $16) 16. Na5 $1 $18 {[%emt 0:03:46]} Qc7 {[%emt 0:04:43]} 17. Nc6 {[%emt 0:01:33]} Nb6 {[%emt 0:02:37]} 18. Qb3 {[%emt 0:03:51]} Qd7 {[%emt 0:22:32]} 19. O-O {[%emt 0:03:50]} e6 {[%emt 0:01:15]} 20. Rfa1 {[%emt 0:04:09]} exd5 {[%emt 0:09:35]} 21. exd5 {[%emt 0:03:34]} ({Don't do} 21. Nxd5 Nfxd5 22. exd5 (22. Rxa8 Rxa8 23. Rxa8+ Nxa8 $18) 22... Rxa3 23. Rxa3 Kh8 $18) 21... Kh8 {[%emt 0:00:49]} (21... Rxa3 {keeps fighting.} 22. Rxa3 Qe8) 22. Rxa8 {[%emt 0:02:42] White is clearly winning.} Rxa8 {[%emt 0:00:34]} 23. Rxa8+ {[%emt 0:02:04]} Nxa8 {[%emt 0:00:06]} 24. b6 {[%emt 0:03:04][%cal Bb5b6,Bb6b7][%mdl 32] [#] Hoping for b7.} Qb7 {[%emt 0:01:54]} 25. Na4 {[%emt 0:00:21]} Nd7 {[%emt 0:04:24]} (25... Nxb6 $142 26. Qxb6 Qa8 27. Qd8+ Qxd8 28. Nxd8 Kg8) 26. Na5 {[%emt 0:02:06]} Qb8 {[%emt 0:01:04]} 27. b7 {[%emt 0:00:24]} Nc7 {[%emt 0:00:21]} 28. Nc6 {[%emt 0:00:24]} Qe8 {[%emt 0:00:10]} 29. Nb6 {[%emt 0:00:59] Weighted Error Value: White=0.09 (flawless) /Black=0.77  Mistake:       	---       	Black=4      Inaccurate:     	White=1     	Black=2      OK:         	White=8     	Black=5      Strong:       	White=1     	---} 1-0

[Event "4NCL Div 1 2024-25"]
[Site "England"]
[Date "2025.01.25"]
[Round "3.11"]
[White "Ledger, Andrew J"]
[Black "Royal, Shreyas"]
[Result "1-0"]
[Annotator "TA"]
[ECO "D35"]
[WhiteElo "2328"]
[BlackElo "2520"]
[PlyCount "99"]
[EventDate "2024.11.23"]
[EventType "team-tourn"]
[EventCountry "ENG"]
[SourceTitle "playchess.com"]
[Source "ChessBase"]
[SourceQuality "1"]
[TimeControl "40/6000+30:3000+30"]

{[%evp 9,99,22,27,13,29,10,18,3,0,0,0,0,1,0,0,0,10,-54,-34,-42,-41,-42,-11,-19,-6,-7,0,0,0,0,0,0,0,0,0,-31,-14,-37,-42,-40,-14,-16,0,-12,104,33,41,41,45,40,58,56,110,75,76,77,85,89,78,82,121,118,128,128,143,129,151,143,391,379,1999,1998,1954,1941,1884,1791,1579,1664,29972,29971,29975,29973,29977,29978,29980,29981,29983,29984,29984,29985,29984,29984]} 1. d4 {[%emt 0:10:03]} Nf6 {[%emt 0:10:06]} 2. c4 {[%emt 0:00:07]} e6 {[%emt 0:00:05]} 3. Nf3 {[%emt 0:00:15]} d5 {[%emt 0:00:06]} 4. Nc3 {[%emt 0:00:14]} Nbd7 {[%emt 0:00:06]} 5. cxd5 {[%emt 0:00:25]} exd5 {[%emt 0:00:02]} 6. Qc2 {[%emt 0:00:28] D35: Queen's Gambit Declined: Exchange Variation.} Bb4 {[%emt 0:01:47]} 7. a3 {[%emt 0:06:23]} Bxc3+ {[%emt 0:06:14]} 8. Qxc3 {[%emt 0:00:39] The position is equal.} Ne4 {[%emt 0:01:59]} 9. Qc2 {[%emt 0:06:33]} O-O {[%emt 0:03:25]} 10. e3 {[%emt 0:06:42]} c5 {[%emt 0:02:56]} 11. Bd3 {[%emt 0:07:41]} Re8 {[%emt 0:06:37]} 12. O-O {[%emt 0:03:02]} c4 {[%emt 0:00:17]} 13. Be2 $146 {[%emt 0:04:02]} (13. Bxe4 $11 Rxe4 14. Bd2) (13. Bxe4 Rxe4 14. b3 Nb6 15. a4 Re8 16. Bd2 cxb3 17. Qxb3 Nc4 18. Bc3 b6 19. Ne5 Be6 20. Qb5 Rc8 21. Rfc1 Nxe5 22. dxe5 Rc5 23. Qb2 {½-½ Szczepaniak,A-Wikman,B Baltic Sea tt6 corr9196 1991}) 13... Nb6 {[%emt 0:10:10]} 14. Bd2 {[%emt 0:10:05]} Bf5 {[%emt 0:00:39][%cal Oe4g3] and ...Ng3! should not be overlooked} 15. Qd1 {[%emt 0:00:32] Strong Square Black (e4) White is weak on the light squares} Nxd2 {[%emt 0:05:35]} 16. Qxd2 {[%emt 0:00:58]} Nc8 {[%emt 0:10:32]} 17. b3 {[%emt 0:05:41]} Nd6 {[%emt 0:03:36]} 18. bxc4 {[%emt 0:05:21]} dxc4 {[%emt 0:00:01]} 19. a4 {[%emt 0:00:42]} Qb6 {[%emt 0:10:25]} 20. Ne5 {[%emt 0:06:39]} Rac8 {[%emt 0:00:42]} 21. Rfc1 {[%emt 0:01:38][%cal Re5c4]} Qb3 {[%emt 0:02:09]} 22. Qa2 {[%emt 0:13:56]} Be6 {[%emt 0:02:09]} 23. Qa3 {[%emt 0:02:56]} Qxa3 {[%emt 0:08:32]} 24. Rxa3 {[%emt 0:00:05]} f6 {[%emt 0:00:44]} 25. Nf3 {[%emt 0:00:17][%cal Be5f3,Bf3e1,Be1d3][%mdl 32]} Ne4 {[%emt 0:00:56]} 26. Kf1 {[%emt 0:03:20]} c3 {[%emt 0:03:14] [#]} (26... g5 $11) 27. Bd3 {[%emt 0:02:18]} (27. Ke1 $1 $16) 27... Bc4 $14 {[%emt 0:00:07]} 28. Ne1 {[%emt 0:00:34]} Bxd3+ {[%emt 0:06:33]} 29. Nxd3 {[%emt 0:00:07][%cal Od3c5]} Rc4 {[%emt 0:00:01]} 30. Ke2 {[%emt 0:03:16]} Rec8 {[%emt 0:01:10]} (30... a6 $14) 31. f3 {[%emt 0:00:53]} Nd6 {[%emt 0:00:00]} 32. Nc5 $36 {[%emt 0:02:03][%mdl 2048] White is in control.} b6 {[%emt 0:00:29]} 33. Ne4 {[%emt 0:00:06]} Nxe4 {[%emt 0:03:59]} 34. fxe4 $16 {[%emt 0:00:05][%mdl 4096] Endgame KRR-KRR} Rb4 {[%emt 0:01:32]} 35. Kd3 {[%emt 0:01:53]} (35. Rcxc3 Rxc3 36. Rxc3 Rxa4) 35... Rb2 {[%emt 0:04:20]} 36. Rc2 {[%emt 0:02:02]} Rxc2 {[%emt 0:00:01]} 37. Kxc2 {[%emt 0:00:05] KR-KR} Rc4 {[%emt 0:00:01]} 38. a5 {[%emt 0:02:19]} ({Resist} 38. Rxc3 $6 Rxa4 39. d5 Kf8 $14 (39... Rxe4 $2 {too greedy.} 40. d6 $18)) 38... b5 $2 {[%emt 0:04:25] [#] This move loses the game for Black.} (38... h5 $16 39. axb6 (39. Rxc3 Ra4 $18) 39... axb6 40. Rxc3 Ra4) 39. Rxc3 $18 {[%emt 0:00:04]} Rxc3+ {[%emt 0:00:03]} (39... Ra4 40. Rc8+ Kf7) 40. Kxc3 {[%emt 0:00:05] KP-KP. White is a pawn up.} a6 {[%emt 0:00:03]} 41. d5 {[%emt 0:54:28]} Kf7 {[%emt 0:51:16]} 42. Kd4 {[%emt 0:00:15]} Ke7 {[%emt 0:01:01]} 43. e5 {[%emt 0:00:07][%cal Be4e5,Be5e6][%mdl 32]} Kd7 {[%emt 0:02:10]} 44. e6+ {[%emt 0:00:00] White mates.} Kd6 {[%emt 0:00:00]} 45. g4 {[%emt 0:00:00]} g6 {[%emt 0:00:00][%cal Bg7g6,Bg6g5][%mdl 32]} 46. e4 {[%emt 0:00:00]} g5 {[%emt 0:00:00]} 47. h3 {[%emt 0:00:00]} h6 {[%emt 0:00:00]} 48. Kd3 {[%emt 0:00:00]} Ke7 {[%emt 0:00:00]} 49. Kc3 {[%emt 0:00:00]} Kd6 {[%emt 0:00:00]} 50. Kd4 {[%emt 0:00:00] Weighted Error Value: White=0.07 (flawless) /Black=0.44  Loses game:     	---       	Black=1      Mistake:       	White=2     	Black=3      Inaccurate:     	White=2     	Black=3      OK:         	White=16    	Black=12     Best:        	White=3     	Black=1} 1-0

[Event "4NCL Div 1 2024-25"]
[Site "England"]
[Date "2025.01.25"]
[Round "3.12"]
[White "Csonka, Balazs"]
[Black "Ansell, Simon T"]
[Result "1-0"]
[Annotator "TA"]
[ECO "D15"]
[WhiteElo "2473"]
[BlackElo "2323"]
[PlyCount "67"]
[EventDate "2024.11.23"]
[EventType "team-tourn"]
[EventCountry "ENG"]
[SourceTitle "playchess.com"]
[Source "ChessBase"]
[SourceQuality "1"]
[TimeControl "40/6000+30:3000+30"]

{[%evp 9,67,-26,-15,-25,-19,-66,-62,-87,-58,-70,-11,-12,33,19,93,75,78,89,106,91,98,103,104,102,89,88,104,91,106,106,133,121,114,122,106,104,114,71,89,56,145,145,199,208,205,217,294,297,299,295,336,351,359,339,386,397,620,619,653,645]} 1. d4 {[%emt 0:10:04]} d5 {[%emt 0:10:38]} 2. c4 {[%emt 0:00:10]} c6 {[%emt 0:00:04]} 3. Nf3 {[%emt 0:00:06]} Nf6 {[%emt 0:00:24]} 4. Nc3 {[%emt 0:01:01]} dxc4 {[%emt 0:01:10]} 5. e4 {[%emt 0:00:35]} b5 {[%emt 0:01:34]} 6. Be2 {[%emt 0:00:17] D15: Slav Defence: 4 Nc3 a6 and gambit lines after 4 Nc3 dxc4.} e6 {[%emt 0:02:03]} 7. a4 {[%emt 0:00:19]} (7. Bg5 $11 {deserves consideration.}) 7... b4 $15 {[%emt 0:10:44]} 8. e5 {[%emt 0:00:10] Black is slightly better.} bxc3 {[%emt 0:06:55]} 9. exf6 {[%emt 0:00:38]} cxb2 {[%emt 0:03:28]} 10. fxg7 $1 {[%emt 0:01:56]} (10. Bxb2 Bb4+ 11. Kf1 Qxf6 (11... gxf6 12. Bxc4 Ba6 13. Rc1 $15) 12. Bxc4 O-O $15) 10... Bxg7 {[%emt 0:03:18]} (10... bxa1=Q $5 11. gxh8=Q (11. gxh8=R $2 Qa5+ 12. Kf1 Q5c3 $19) 11... Qa5+ 12. Kf1 Q5c3 $15) 11. Bxb2 {[%emt 0:00:12][%cal Od1c2]} Qa5+ {[%emt 0:11:05] [#]} (11... c5 $11) 12. Nd2 $1 $16 {[%emt 0:01:51][%cal Oe1g1]} Ba6 {[%emt 0:03:51] aiming for ...c3.} 13. Ra3 {[%emt 0:15:59]} Qb6 $146 {[%emt 0:18:22]} (13... Bf8 14. O-O Rg8 15. Rc3 Nd7 16. Nxc4 Bxc4 17. Rxc4 Qd5 18. g3 Nb6 19. Rxc6 Qxc6 {1-0 Shlyakhtenko,R (2401)-Wessman,R (2410) Biel HTO 56th 2023 (7)}) 14. Qc2 {[%emt 0:28:53]} (14. Nxc4 $2 {is the wrong capture.} Bxc4 15. Qd2 Bxe2 16. Kxe2 Qa6+ 17. Rd3 Nd7 $19 (17... Qxa4 $2 18. Ra1 $19)) 14... c3 {[%emt 0:01:13]} 15. Rxc3 {[%emt 0:01:01] A sharp opening} ({But not} 15. Bxc3 Bxe2 16. Kxe2 Qa6+ 17. Kf3 O-O $11) 15... Bxe2 {[%emt 0:00:11]} 16. Kxe2 {[%emt 0:00:39]} Qa6+ {[%emt 0:05:30]} 17. Nc4 {[%emt 0:13:40] Strongly threatening Rg3. White is more active.} Nd7 {[%emt 0:09:53][%cal Od7b6]} 18. Rg3 {[%emt 0:07:44]} Nb6 {[%emt 0:03:44]} 19. Rc1 $36 {[%emt 0:01:32][%cal Bh1c1,Bc1c4,Bc4c5,Bc5h5][%mdl 2080] Black is under strong pressure.} Bf6 {[%emt 0:05:36][%cal Oa8b8]} 20. Qd3 {[%emt 0:03:56]} Nxc4 {[%emt 0:00:21]} 21. Qxc4 {[%emt 0:08:08]} Qxc4+ {[%emt 0:00:13]} 22. Rxc4 {[%emt 0:00:04]} Rc8 {[%emt 0:01:33]} 23. h3 {[%emt 0:02:36]} h5 {[%emt 0:02:11]} 24. Rc5 {[%emt 0:03:31]} Kd7 {[%emt 0:01:35]} (24... Be7 $14) 25. Rf3 {[%emt 0:01:18]} Rh6 {[%emt 0:01:12]} (25... Rb8 $16 26. Ba3 Rh6) 26. Bc1 $18 {[%emt 0:01:01]} Rg6 {[%emt 0:00:16]} 27. Rxh5 {[%emt 0:00:24]} Bxd4 {[%emt 0:01:48]} 28. Rxf7+ {[%emt 0:00:34]} Kd6 {[%emt 0:00:05]} 29. g4 {[%emt 0:02:42]} Rb8 {[%emt 0:00:28]} 30. Ba3+ {[%emt 0:00:56]} c5 {[%emt 0:00:14]} 31. Rxa7 {[%emt 0:00:17]} Rf6 {[%emt 0:01:33]} 32. Ra6+ {[%emt 0:00:55]} Kc7 {[%emt 0:00:58]} (32... Ke7 $142) 33. Rh7+ {[%emt 0:00:07]} Kc8 {[%emt 0:00:48]} 34. f3 {[%emt 0:00:53] Weighted Error Value: White=0.05 (flawless) /Black=0.28 (precise)   Mistake:       	White=1     	Black=4      Inaccurate:     	White=2     	Black=2      OK:         	White=12    	Black=6      Best:        	White=6     	Black=7      Strong:       	White=2     	---} 1-0